[Event "10th LCC FIDE Open 2018"]
[Site "London"]
[Date "2018.12.15"]
[Round "7"]
[White "Stephan, Axel"]
[Black "Ratnesan, Ranesh"]
[Result "1/2-1/2"]
[ECO "B23"]
[WhiteElo "2204"]
[BlackElo "2055"]
[Annotator "NA"]
[PlyCount "73"]
[EventDate "2018.12.09"]
[EventType "swiss"]
[EventCountry "ENG"]
[SourceTitle "playchess.com"]
[Source "ChessBase"]
[SourceQuality "1"]
[TimeControl "40/5400+30:1800+30"]

1. e4 {[%emt 0:04:25]} c5 {[%emt 0:00:00]} 2. Nc3 {[%emt 0:00:08]} Nc6 {[%emt 0:00:00]} 3. Nge2 {[%emt 0:00:13]} e5 {[%emt 0:00:25]} 4. Nd5 {[%emt 0:00:18]} Nf6 {[%emt 0:00:16]} 5. Nec3 {[%emt 0:00:20]} Nxd5 {[%emt 0:00:16]} 6. Nxd5 {[%emt 0:00:35]} Be7 {[%emt 0:00:17]} 7. Bc4 {[%emt 0:01:52]} O-O {[%emt 0:00:12]} 8. O-O {[%emt 0:02:12]} d6 {[%emt 0:00:22]} 9. f4 {[%emt 0:03:27]} exf4 {[%emt 0:01:59]} 10. Nxf4 {[%emt 0:01:24]} Rb8 {[%emt 0:02:46]} 11. c3 {[%emt 0:02:25]} Bg5 {[%emt 0:11:53]} 12. d4 {[%emt 0:07:27]} cxd4 {[%emt 0:23:16]} 13. cxd4 {[%emt 0:00:42]} b5 {[%emt 0:03:35]} 14. Bb3 {[%emt 0:07:21]} Na5 {[%emt 0:03:21]} 15. Bc2 {[%emt 0:08:01]} Bb7 {[%emt 0:06:00]} 16. Qg4 {[%emt 0:05:35]} Bf6 $11 {[%emt 0:09:03]} 17. Ne2 {[%emt 0:10:55]} Qc8 {[%emt 0:05:02]} 18. Qxc8 {[%emt 0:02:27]} Rbxc8 {[%emt 0:01:16]} 19. Bd3 {[%emt 0:00:33]} a6 {[%emt 0:05:16]} 20. Bf4 {[%emt 0:02:51]} Rfe8 {[%emt 0:01:44]} 21. Rac1 {[%emt 0:09:01]} Rxc1 {[%emt 0:06:16]} 22. Rxc1 {[%emt 0:00:39]} h6 {[%emt 0:00:56]} 23. d5 {[%emt 0:07:49]} Bxb2 {[%emt 0:04:06]} 24. Rc7 {[%emt 0:00:40]} Ba3 {[%emt 0:00:29]} 25. Bd2 {[%emt 0:01:47]} Bc5+ {[%emt 0:05:27]} 26. Rxc5 {[%emt 0:06:39]} dxc5 {[%emt 0:00:02]} 27. Bxa5 {[%emt 0:00:05]} c4 {[%emt 0:00:16]} 28. d6 {[%emt 0:02:41]} cxd3 {[%emt 0:05:05]} 29. d7 {[%emt 0:00:42]} Rf8 {[%emt 0:00:04]} 30. Nc3 {[%emt 0:03:09]} b4 {[%emt 0:01:14]} 31. Nd1 {[%emt 0:02:47]} Bc6 {[%emt 0:01:17]} 32. d8=Q {[%emt 0:00:41]} Rxd8 {[%emt 0:00:07]} 33. Bxd8 {[%emt 0:00:04]} Ba4 {[%emt 0:00:10]} 34. Ne3 {[%emt 0:02:41]} d2 {[%emt 0:00:07]} 35. Ba5 {[%emt 0:00:30]} d1=Q+ {[%emt 0:00:16]} 36. Nxd1 {[%emt 0:00:08]} Bxd1 {[%emt 0:00:04]} 37. Bxb4 {[%emt 0:00:07]} 1/2-1/2

[Event "10th LCC FIDE Open 2018"]
[Site "London"]
[Date "2018.12.15"]
[Round "7"]
[White "Martinez, Ayelen"]
[Black "Gerlach, Felix Tobias"]
[Result "1-0"]
[ECO "C99"]
[WhiteElo "2185"]
[BlackElo "2050"]
[Annotator "NA"]
[PlyCount "75"]
[EventDate "2018.12.09"]
[EventType "swiss"]
[EventCountry "ENG"]
[SourceTitle "playchess.com"]
[Source "ChessBase"]
[SourceQuality "1"]
[TimeControl "40/5400+30:1800+30"]

1. e4 {[%emt 0:14:16]} e5 {[%emt 0:00:00]} 2. Nf3 {[%emt 0:00:10]} Nc6 {[%emt 0:00:00]} 3. Bb5 {[%emt 0:00:05]} a6 {[%emt 0:00:00]} 4. Ba4 {[%emt 0:00:04]} Nf6 {[%emt 0:00:00]} 5. O-O {[%emt 0:00:06]} Be7 {[%emt 0:00:00]} 6. Re1 {[%emt 0:00:13]} b5 {[%emt 0:00:00]} 7. Bb3 {[%emt 0:00:05]} d6 {[%emt 0:00:04]} 8. c3 {[%emt 0:00:04]} O-O {[%emt 0:00:05]} 9. h3 {[%emt 0:00:04]} Na5 {[%emt 0:00:04]} 10. Bc2 {[%emt 0:00:04]} c5 {[%emt 0:00:04]} 11. d4 {[%emt 0:00:04]} Qc7 {[%emt 0:00:04]} 12. Nbd2 {[%emt 0:00:04]} cxd4 {[%emt 0:00:49]} 13. cxd4 {[%emt 0:00:07]} Bd7 {[%emt 0:01:55]} 14. Nf1 {[%emt 0:03:09]} Rac8 {[%emt 0:01:23]} 15. Bd3 {[%emt 0:00:09]} Rfe8 {[%emt 0:07:59] C99: Closed Ruy Lopez: Chigorin Defence: 11 d4 Qc7 12 Nbd2 cxd4} (15... Nc6 16. Be3 exd4 17. Nxd4 Ne5 18. Ng3 Nxd3 19. Qxd3 Rfe8 20. Rac1 Qb7 21. Ndf5 Bxf5 22. Nxf5 Rxc1 23. Rxc1 Bf8 24. Nxd6 Qd7 25. Rd1 {1-0 (58) Adams,M (2703)-Koneru,H (2612) Zafra 2009}) 16. Ng3 {[%emt 0:02:54]} Nc6 {[%emt 0:05:07] [#]} 17. d5 $146 {[%emt 0:05:36]} ({Predecessor:} 17. Be3 exd4 18. Nxd4 d5 19. Rc1 Bb4 20. Bd2 Bxd2 21. Qxd2 dxe4 22. Nxe4 Nxe4 23. Bxe4 Qd6 24. Bxc6 Rxc6 25. Rxc6 Bxc6 26. Nxc6 Rxe1+ 27. Qxe1 Qxc6 {½-½ (27) Xie,J (2569)-Qin,K (2473) Tianjing 2003}) 17... Nb4 {[%emt 0:01:41]} 18. Bg5 {[%emt 0:07:17]} Nxd3 {[%emt 0:08:31]} 19. Qxd3 $11 {[%emt 0:00:05]} h6 {[%emt 0:00:08]} 20. Bd2 {[%emt 0:06:12]} Qb7 {[%emt 0:12:45]} 21. Qa3 {[%emt 0:03:12]} Rc4 {[%emt 0:22:54]} 22. Rac1 {[%emt 0:06:54]} Rec8 {[%emt 0:01:38]} 23. Rxc4 {[%emt 0:00:39]} Rxc4 {[%emt 0:00:15]} 24. Bb4 {[%emt 0:01:05]} Qc7 {[%emt 0:02:29]} 25. Nxe5 {[%emt 0:02:01]} Rxb4 {[%emt 0:07:52]} 26. Nxd7 {[%emt 0:04:32]} Ra4 {[%emt 0:01:45]} 27. Nxf6+ {[%emt 0:00:06]} Bxf6 {[%emt 0:00:05]} 28. Qb3 {[%emt 0:00:07]} Qc4 {[%emt 0:03:29]} 29. Qf3 {[%emt 0:18:52]} Bxb2 {[%emt 0:11:11]} 30. Nf5 {[%emt 0:00:07]} Qb4 {[%emt 0:03:49]} 31. Re2 {[%emt 0:06:08]} Rxa2 {[%emt 0:02:19]} 32. g3 {[%emt 0:00:42]} Ra1+ {[%emt 0:01:24]} 33. Kh2 {[%emt 0:01:43]} Be5 {[%emt 0:01:20]} 34. Rc2 {[%emt 0:00:27]} Qe1 {[%emt 0:02:02]} 35. Ne7+ {[%emt 0:00:46]} Kf8 {[%emt 0:00:35]} 36. Ng6+ {[%emt 0:00:07]} Kg8 {[%emt 0:02:38]} 37. Rc8+ {[%emt 0:00:09]} Kh7 {[%emt 0:00:17]} 38. Rh8+ {[%emt 0:00:06]} 1-0

[Event "10th LCC FIDE Open 2018"]
[Site "London"]
[Date "2018.12.15"]
[Round "7"]
[White "Sumit, Kumar"]
[Black "Rice, Chris B"]
[Result "1-0"]
[ECO "B01"]
[WhiteElo "2179"]
[BlackElo "1963"]
[Annotator "NA"]
[PlyCount "63"]
[EventDate "2018.12.09"]
[EventType "swiss"]
[EventCountry "ENG"]
[SourceTitle "playchess.com"]
[Source "ChessBase"]
[SourceQuality "1"]
[TimeControl "40/5400+30:1800+30"]

1. e4 {[%emt 0:00:00]} d5 {[%emt 0:02:50]} 2. exd5 {[%emt 0:00:06]} Qxd5 {[%emt 0:00:08]} 3. Nc3 {[%emt 0:00:05]} Qd6 {[%emt 0:00:03]} 4. d4 {[%emt 0:00:07]} Nf6 {[%emt 0:00:05]} 5. Nf3 {[%emt 0:01:03]} c6 {[%emt 0:00:06]} 6. g3 {[%emt 0:02:23]} Bf5 {[%emt 0:00:49]} 7. Bf4 {[%emt 0:00:51]} Qd8 {[%emt 0:00:37]} 8. Bg2 {[%emt 0:01:30]} e6 {[%emt 0:00:08]} 9. O-O {[%emt 0:06:41]} h6 {[%emt 0:00:04]} 10. Qe2 {[%emt 0:06:09]} Be7 {[%emt 0:05:05]} 11. Rad1 {[%emt 0:08:00]} O-O {[%emt 0:04:43]} 12. a3 {[%emt 0:04:48]} Nbd7 {[%emt 0:04:43]} 13. Na2 {[%emt 0:01:40]} Re8 {[%emt 0:38:41]} 14. c4 {[%emt 0:02:37]} a5 {[%emt 0:03:13]} 15. Nc3 {[%emt 0:02:15]} a4 {[%emt 0:00:57]} 16. h3 {[%emt 0:03:51]} Qa5 {[%emt 0:00:46]} 17. Rc1 {[%emt 0:04:52]} Bf8 {[%emt 0:07:25]} 18. Rfd1 {[%emt 0:03:59]} Bh7 {[%emt 0:02:23]} 19. Ne5 {[%emt 0:04:43]} Rac8 {[%emt 0:04:56]} 20. Kh2 {[%emt 0:08:24]} Qa6 {[%emt 0:02:02]} 21. Ne4 {[%emt 0:02:12]} Be7 {[%emt 0:08:37]} 22. Nc3 {[%emt 0:08:04]} Bf8 {[%emt 0:01:58]} 23. g4 {[%emt 0:02:38]} Rcd8 {[%emt 0:01:46]} 24. Rd2 {[%emt 0:02:26]} Bd6 {[%emt 0:02:57]} 25. Bg3 {[%emt 0:00:42]} c5 {[%emt 0:01:57]} 26. Nb5 {[%emt 0:01:39]} Bb8 {[%emt 0:00:35]} 27. Rcd1 {[%emt 0:04:01]} Qb6 {[%emt 0:01:14]} 28. Qe3 {[%emt 0:02:52]} Nd5 {[%emt 0:02:57]} 29. Nxd7 Bxg3+ {[%emt 0:00:30]} 30. Qxg3 Rxd7 {[%emt 0:00:30]} 31. dxc5 Qxc5 {[%emt 0:00:30]} 32. Bf1 1-0

[Event "10th LCC FIDE Open 2018"]
[Site "London"]
[Date "2018.12.15"]
[Round "7"]
[White "Ogunshola, Ben"]
[Black "Ditmas, Hugh"]
[Result "1-0"]
[ECO "E05"]
[WhiteElo "2172"]
[BlackElo "1978"]
[Annotator "NA"]
[PlyCount "75"]
[EventDate "2018.12.09"]
[EventType "swiss"]
[EventCountry "ENG"]
[SourceTitle "playchess.com"]
[Source "ChessBase"]
[SourceQuality "1"]
[TimeControl "40/5400+30:1800+30"]

1. c4 {[%emt 0:45:43]} Nf6 {[%emt 0:04:05]} 2. Nf3 {[%emt 0:01:35]} e6 {[%emt 0:00:22]} 3. g3 {[%emt 0:00:37]} d5 {[%emt 0:00:17]} 4. Bg2 {[%emt 0:00:21]} Be7 {[%emt 0:00:11]} 5. O-O {[%emt 0:00:59]} O-O {[%emt 0:00:10]} 6. d4 {[%emt 0:06:25]} dxc4 {[%emt 0:00:08]} 7. Qa4 {[%emt 0:02:08]} a6 {[%emt 0:03:47]} 8. Qxc4 {[%emt 0:00:03]} b5 {[%emt 0:00:20]} 9. Qc2 {[%emt 0:00:02]} Bb7 {[%emt 0:00:23]} 10. Rd1 {[%emt 0:08:22]} Be4 {[%emt 0:03:04]} 11. Qd2 {[%emt 0:02:16]} Nd5 {[%emt 0:03:58]} 12. a3 {[%emt 0:03:42]} Nd7 {[%emt 0:06:06]} 13. Nc3 {[%emt 0:01:17]} Nxc3 {[%emt 0:12:13]} 14. Qxc3 {[%emt 0:00:11]} Qc8 {[%emt 0:03:33]} 15. Bg5 {[%emt 0:10:03]} f6 {[%emt 0:09:42]} 16. Bf4 {[%emt 0:03:35]} Bd6 {[%emt 0:02:15]} 17. Rac1 {[%emt 0:03:52]} Nb6 {[%emt 0:04:12]} 18. Qe3 {[%emt 0:02:40]} Qb7 {[%emt 0:05:56]} 19. Bh3 {[%emt 0:02:08]} f5 {[%emt 0:02:23]} 20. Bxd6 {[%emt 0:02:16]} cxd6 {[%emt 0:00:41]} 21. Nd2 {[%emt 0:03:02]} Bd5 {[%emt 0:05:54]} 22. Qf4 {[%emt 0:04:10]} Qe7 {[%emt 0:00:28]} 23. b3 {[%emt 0:01:15]} g5 {[%emt 0:01:06]} 24. Qe3 {[%emt 0:00:42]} g4 {[%emt 0:03:05]} 25. Bf1 {[%emt 0:03:57]} Rac8 {[%emt 0:02:02]} 26. Qd3 {[%emt 0:03:46]} Qf6 {[%emt 0:04:41]} 27. Rxc8 {[%emt 0:06:08]} Rxc8 {[%emt 0:00:58]} 28. e4 {[%emt 0:00:14]} Bb7 {[%emt 0:01:34]} 29. Bg2 {[%emt 0:00:16]} Qg5 {[%emt 0:01:55]} 30. d5 {[%emt 0:02:53]} fxe4 {[%emt 0:03:10]} 31. Nxe4 {[%emt 0:00:07]} Qe5 {[%emt 0:02:58]} 32. dxe6 {[%emt 0:00:28]} d5 {[%emt 0:01:30]} 33. Qe3 {[%emt 0:03:17]} Qxe6 {[%emt 0:05:47]} 34. Qg5+ {[%emt 0:00:27]} Kh8 {[%emt 0:03:00]} 35. Qf6+ {[%emt 0:16:00]} Qxf6 {[%emt 0:00:08]} 36. Nxf6 Rc3 {[%emt 0:01:21]} 37. Re1 {[%emt 0:00:55]} Bc6 {[%emt 0:01:32]} 38. Re7 {[%emt 0:00:13] Kg7 [%emt 00:02:59]} 1-0

[Event "10th LCC FIDE Open 2018"]
[Site "London"]
[Date "2018.12.15"]
[Round "7"]
[White "Russell, Christopher"]
[Black "Frank, Tena, Dr."]
[Result "1-0"]
[ECO "B22"]
[WhiteElo "2169"]
[BlackElo "1899"]
[Annotator "NA"]
[PlyCount "95"]
[EventDate "2018.12.09"]
[EventType "swiss"]
[EventCountry "ENG"]
[SourceTitle "playchess.com"]
[Source "ChessBase"]
[SourceQuality "1"]
[TimeControl "40/5400+30:1800+30"]

1. e4 {[%emt 0:01:41]} c5 {[%emt 0:00:00]} 2. c3 {[%emt 0:00:03]} Nf6 {[%emt 0:00:09]} 3. e5 {[%emt 0:02:19]} Nd5 {[%emt 0:00:15]} 4. g3 {[%emt 0:00:04]} d6 {[%emt 0:01:10]} 5. exd6 {[%emt 0:00:07]} Qxd6 {[%emt 0:00:59]} 6. Bg2 {[%emt 0:00:57]} Nc6 {[%emt 0:01:46]} 7. Nf3 {[%emt 0:00:44]} Bf5 {[%emt 0:14:17]} 8. O-O {[%emt 0:13:02]} Bd3 {[%emt 0:04:12]} 9. Re1 {[%emt 0:00:41]} h6 {[%emt 0:28:27]} 10. Qb3 {[%emt 0:09:10]} e6 {[%emt 0:14:45]} 11. Na3 {[%emt 0:07:21]} Nb6 {[%emt 0:01:26]} 12. Nb5 {[%emt 0:07:41]} Qd7 {[%emt 0:07:55]} 13. a4 {[%emt 0:10:23]} Be7 {[%emt 0:08:14]} 14. Nxa7 {[%emt 0:07:03]} Rxa7 {[%emt 0:00:44]} 15. Qxb6 {[%emt 0:00:08]} Ra6 {[%emt 0:00:40]} 16. Qb3 {[%emt 0:02:37]} O-O {[%emt 0:01:46]} 17. Qd1 {[%emt 0:04:34]} Bf6 {[%emt 0:01:01]} 18. Re3 {[%emt 0:05:11]} c4 {[%emt 0:03:25]} 19. Ne1 {[%emt 0:04:22]} Bg5 {[%emt 0:05:57]} 20. f4 {[%emt 0:00:59]} Be7 {[%emt 0:00:00]} 21. Nxd3 {[%emt 0:02:12]} cxd3 {[%emt 0:00:00]} 22. Kh1 {[%emt 0:01:34]} Bc5 {[%emt 0:00:09]} 23. Re1 {[%emt 0:02:07]} b5 {[%emt 0:00:53]} 24. b4 {[%emt 0:01:21]} Ba7 {[%emt 0:00:23]} 25. Bb2 {[%emt 0:00:47]} Ne7 {[%emt 0:01:01]} 26. axb5 {[%emt 0:01:36]} Qxb5 {[%emt 0:00:26]} 27. Qb3 {[%emt 0:00:45]} Bf2 {[%emt 0:00:34]} 28. Rf1 {[%emt 0:04:20]} Rxa1 {[%emt 0:00:43]} 29. Bxa1 {[%emt 0:00:01]} Bc5 {[%emt 0:01:02]} 30. Qb1 {[%emt 0:01:54]} Bb6 {[%emt 0:00:36]} 31. Be4 {[%emt 0:01:10]} Rd8 {[%emt 0:00:27]} 32. Rf3 {[%emt 0:00:36]} Qh5 {[%emt 0:00:41]} 33. Kg2 {[%emt 0:01:01]} g5 {[%emt 0:00:43]} 34. c4 {[%emt 0:02:05]} f5 {[%emt 0:01:00]} 35. Bxd3 {[%emt 0:00:56]} gxf4 {[%emt 0:00:10]} 36. c5 {[%emt 0:01:45]} Bc7 {[%emt 0:00:07]} 37. Qb2 {[%emt 0:01:32]} e5 {[%emt 0:00:07]} 38. Bc4+ {[%emt 0:01:02]} Kh7 {[%emt 0:00:17]} 39. Rxf4 {[%emt 0:00:50]} Ng6 {[%emt 0:01:46]} 40. Rf2 {[%emt 0:01:04]} Qg4 {[%emt 0:00:28]} 41. Qc2 {[%emt 0:03:22]} e4 {[%emt 0:13:46]} 42. Be2 {[%emt 0:07:19]} Qg5 {[%emt 0:05:43]} 43. Bc3 {[%emt 0:04:33]} h5 {[%emt 0:02:37]} 44. Qa2 {[%emt 0:03:24]} Rd7 {[%emt 0:07:02]} 45. Qe6 {[%emt 0:03:15]} Nh4+ {[%emt 0:02:53]} 46. Kf1 {[%emt 0:00:55]} Re7 {[%emt 0:00:25]} 47. gxh4 {[%emt 0:01:04]} Qxh4 {[%emt 0:01:03]} 48. Qxf5+ {[%emt 0:00:37]} 1-0

[Event "10th LCC FIDE Open 2018"]
[Site "London"]
[Date "2018.12.15"]
[Round "7"]
[White "Pollack, Oscar"]
[Black "Bradbury, Neil H"]
[Result "0-1"]
[ECO "B80"]
[WhiteElo "2150"]
[BlackElo "2336"]
[Annotator "NA"]
[PlyCount "104"]
[EventDate "2018.12.09"]
[EventType "swiss"]
[EventCountry "ENG"]
[SourceTitle "playchess.com"]
[Source "ChessBase"]
[SourceQuality "1"]
[TimeControl "40/5400+30:1800+30"]

1. e4 {[%emt 0:07:54]} c5 {[%emt 0:00:00]} 2. Nf3 {[%emt 0:00:02]} e6 {[%emt 0:00:00]} 3. d4 {[%emt 0:00:02]} cxd4 {[%emt 0:00:06]} 4. Nxd4 {[%emt 0:00:01]} Nc6 {[%emt 0:00:22]} 5. Nc3 {[%emt 0:00:07]} Qc7 {[%emt 0:00:34]} 6. g3 {[%emt 0:00:12]} a6 {[%emt 0:04:41]} 7. Bg2 {[%emt 0:00:40]} Nf6 {[%emt 0:02:00]} 8. O-O {[%emt 0:00:52]} Be7 {[%emt 0:04:11]} 9. Re1 {[%emt 0:01:57]} d6 {[%emt 0:08:13]} 10. Nxc6 {[%emt 0:03:24]} bxc6 {[%emt 0:00:02]} 11. e5 {[%emt 0:02:33]} dxe5 {[%emt 0:10:30]} 12. Rxe5 {[%emt 0:01:58]} O-O {[%emt 0:01:40]} 13. Bf4 {[%emt 0:07:51]} Qb7 {[%emt 0:15:51] LiveBook: 59 Games} 14. Qd3 {[%emt 0:17:12] B80: Sicilian Scheveningen: 6 g3 and 6 Be3, including English Attack} (14. Na4 Rd8 15. Qf3 Nd5 16. Bd2 Bf6 17. Re4 e5 18. Rae1 Ne7 19. Ba5 Rd5 20. Bc3 Bf5 21. Rb4 Qc7 22. Nb6 {1-0 (35) Movsesian,S (2651)-Sakaev,K (2647) Panormo 2002}) 14... Rd8 {[%emt 0:03:22]} 15. Qc4 {[%emt 0:01:33]} Bd7 $146 {[%emt 0:00:29]} ({Predecessor:} 15... Nd5 16. Rae1 Bd7 17. Bg5 Bxg5 18. Rxg5 Qxb2 19. Na4 Qf6 20. h4 h6 21. Rge5 c5 22. Nxc5 {½-½ (31) Rodin,D (2260)-Moltchanov,R (2411) Voronezh 1999}) 16. Rd1 {[%emt 0:03:11]} Be8 {[%emt 0:01:42]} 17. Ree1 {[%emt 0:03:12]} Qxb2 {[%emt 0:04:41]} 18. Rb1 {[%emt 0:17:35]} (18. Na4 $15 Qb5 19. Qb3) 18... Qxc2 {[%emt 0:02:00]} 19. Rec1 $17 {[%emt 0:00:36]} Qf5 {[%emt 0:06:57]} 20. Rb7 {[%emt 0:00:54]} Nd5 {[%emt 0:02:31]} 21. Bd2 {[%emt 0:07:01]} Ba3 {[%emt 0:11:10]} 22. Be4 {[%emt 0:06:57]} Qh5 {[%emt 0:01:46]} 23. Rcb1 {[%emt 0:02:11]} c5 {[%emt 0:03:29]} 24. Qb3 {[%emt 0:04:11]} Bb4 {[%emt 0:01:09]} 25. Nxd5 {[%emt 0:01:37]} Bxd2 {[%emt 0:05:36]} 26. Nc7 {[%emt 0:01:26]} Rac8 {[%emt 0:00:33]} 27. Nxa6 {[%emt 0:01:29]} c4 {[%emt 0:00:45]} 28. Qc2 {[%emt 0:01:05]} c3 {[%emt 0:01:03]} 29. Nc7 {[%emt 0:02:33]} Bd7 {[%emt 0:00:25]} 30. a4 {[%emt 0:00:32]} g6 {[%emt 0:01:52]} 31. Nb5 {[%emt 0:01:32]} Qc5 {[%emt 0:00:39]} 32. a5 {[%emt 0:02:28]} Bc6 {[%emt 0:02:38]} 33. Bxc6 {[%emt 0:00:39]} Rxc6 {[%emt 0:00:21]} 34. Rb3 {[%emt 0:00:15]} Ra8 {[%emt 0:02:14]} 35. Ra3 {[%emt 0:00:50]} Qe5 {[%emt 0:00:29]} 36. Rb6 {[%emt 0:00:41]} Rc5 {[%emt 0:00:58]} 37. Rb3 {[%emt 0:00:42]} Rxa5 {[%emt 0:00:08]} 38. Na3 {[%emt 0:00:08]} Kg7 {[%emt 0:01:11]} 39. R6b4 {[%emt 0:00:29]} Qd5 {[%emt 0:01:32]} 40. Nb1 {[%emt 0:00:28]} Ra1 {[%emt 0:00:43]} 41. h4 {[%emt 0:30:29]} Qf5 {[%emt 0:02:16]} 42. Re4 {[%emt 0:00:00]} Rc4 {[%emt 0:01:43]} 43. f3 {[%emt 0:00:00]} Rxe4 {[%emt 0:00:15]} 44. fxe4 {[%emt 0:00:00]} Qf3 {[%emt 0:03:46]} 45. Kh2 {[%emt 0:00:00]} Be1 {[%emt 0:00:34]} 46. Rxc3 {[%emt 0:00:00]} Bxc3 {[%emt 0:00:28]} 47. Qxc3+ {[%emt 0:00:00]} Qxc3 {[%emt 0:00:05]} 48. Nxc3 {[%emt 0:00:00]} Kf6 {[%emt 0:00:21]} 49. Kg2 {[%emt 0:00:00]} Ke5 {[%emt 0:00:13]} 50. Kf2 {[%emt 0:00:00]} Ra3 {[%emt 0:01:31]} 51. Nb5 {[%emt 0:00:00]} Rb3 {[%emt 0:00:24]} 52. Na7 {[%emt 0:00:00]} Kxe4 {[%emt 0:00:15]} 0-1

[Event "10th LCC FIDE Open 2018"]
[Site "London"]
[Date "2018.12.15"]
[Round "7"]
[White "Bezuidenhout, Roland"]
[Black "Lyell, Mark"]
[Result "1/2-1/2"]
[ECO "A87"]
[WhiteElo "2145"]
[BlackElo "2317"]
[Annotator "NA"]
[PlyCount "93"]
[EventDate "2018.12.09"]
[EventType "swiss"]
[EventCountry "ENG"]
[SourceTitle "playchess.com"]
[Source "ChessBase"]
[SourceQuality "1"]
[TimeControl "40/5400+30:1800+30"]

1. Nf3 {[%emt 0:06:33]} f5 {[%emt 0:00:36]} 2. c4 {[%emt 0:01:23]} Nf6 {[%emt 0:00:21]} 3. g3 {[%emt 0:00:30]} g6 {[%emt 0:01:03]} 4. Bg2 {[%emt 0:00:24]} Bg7 {[%emt 0:00:08]} 5. O-O {[%emt 0:00:23]} O-O {[%emt 0:00:14]} 6. Nc3 {[%emt 0:00:27]} d6 {[%emt 0:00:13]} 7. d4 {[%emt 0:00:39]} Qe8 {[%emt 0:00:06]} 8. d5 {[%emt 0:00:09]} Na6 {[%emt 0:00:30]} 9. Rb1 {[%emt 0:01:16]} Nc5 {[%emt 0:02:51]} 10. Nd4 {[%emt 0:01:38]} Nce4 $146 {[%emt 0:09:08] A87: Dutch Defence: Leningrad System: 5 Nf3} ({Predecessor:} 10... a5 11. b3 h6 12. Bb2 g5 13. Ncb5 Na6 14. e3 Bd7 15. Ne6 Bxe6 16. dxe6 c6 17. Nd4 Nc5 18. Nxf5 Nxe6 19. e4 Qf7 20. Qe2 Rfe8 21. f4 gxf4 22. gxf4 Qh5 23. Bf3 Qg6+ 24. Kh1 Nxf4 25. Qe3 {1-0 (25) Bu,X (2662)-Lu,S (2551) Danzhou 2013}) 11. Ncb5 {[%emt 0:01:35]} Qd8 {[%emt 0:05:49]} 12. f3 {[%emt 0:00:26]} Nc5 {[%emt 0:06:07]} 13. b4 {[%emt 0:00:21]} a6 {[%emt 0:01:11]} 14. Na3 {[%emt 0:05:48]} e5 {[%emt 0:01:11]} 15. bxc5 {[%emt 0:00:34]} exd4 {[%emt 0:00:14]} 16. cxd6 {[%emt 0:00:29]} cxd6 {[%emt 0:04:22]} 17. Nc2 {[%emt 0:01:39]} Qc7 {[%emt 0:01:19]} 18. Qd3 {[%emt 0:05:38]} Nd7 {[%emt 0:11:37]} 19. Qb3 {[%emt 0:09:44]} b5 {[%emt 0:11:49]} 20. cxb5 {[%emt 0:02:20]} axb5 {[%emt 0:01:01]} 21. Na3 {[%emt 0:04:59]} Ba6 {[%emt 0:06:13]} 22. Bf4 {[%emt 0:03:34]} Rfe8 {[%emt 0:09:11]} 23. Rfc1 {[%emt 0:07:38]} Qa7 {[%emt 0:03:09]} 24. Nxb5 {[%emt 0:07:17]} Bxb5 {[%emt 0:00:42]} 25. Qxb5 {[%emt 0:00:06]} Rab8 {[%emt 0:07:27]} 26. Qd3 {[%emt 0:02:29]} Rxb1 {[%emt 0:02:28]} 27. Rxb1 {[%emt 0:00:06]} Qxa2 {[%emt 0:00:44]} 28. Bf1 {[%emt 0:00:09]} Qxd5 {[%emt 0:04:08]} 29. e4 {[%emt 0:00:46]} fxe4 {[%emt 0:02:20]} 30. fxe4 {[%emt 0:00:05]} Qxe4 {[%emt 0:01:43]} 31. Qxe4 {[%emt 0:00:15]} Rxe4 {[%emt 0:00:04]} 32. Bc4+ {[%emt 0:00:10]} Kh8 {[%emt 0:04:57]} 33. Rb7 {[%emt 0:00:09]} Nf6 {[%emt 0:00:39]} 34. Bxd6 {[%emt 0:02:19]} Re8 {[%emt 0:01:05]} 35. Bb5 {[%emt 0:01:52]} Ra8 {[%emt 0:01:08]} 36. Be5 {[%emt 0:01:34]} Nh5 {[%emt 0:01:02]} 37. Bxg7+ {[%emt 0:00:29]} Nxg7 {[%emt 0:00:06]} 38. Rd7 {[%emt 0:00:11]} Nf5 {[%emt 0:00:42]} 39. Bd3 {[%emt 0:01:23]} Ra1+ $11 {[%emt 0:00:40]} 40. Kg2 {[%emt 0:01:41]} Ra2+ {[%emt 0:01:01]} 41. Kh3 {[%emt 0:30:21]} Rd2 {[%emt 0:04:08]} 42. Bxf5 {[%emt 0:00:00]} gxf5 {[%emt 0:00:01]} 43. Kh4 {[%emt 0:00:00]} Rxh2+ {[%emt 0:05:59]} 44. Kg5 {[%emt 0:00:00]} Rg2 {[%emt 0:02:11]} 45. Kxf5 {[%emt 0:00:00]} Rxg3 {[%emt 0:00:34]} 46. Rxd4 {[%emt 0:00:00]} Rg1 {[%emt 0:03:21]} 47. Rg4 {[%emt 0:00:00]} 1/2-1/2